bitfinex-derivatives/quotes_BTCF0:USTF0_20250406
["timestamp","ask_amount","ask_price","bid_price","bid_amount"]
[1743980306071,0.6246,78015.0,78014.0,0.79834419]
[1743980306272,0.6246,78015.0,78014.0,0.81554555]
[1743980307376,0.6246,78015.0,78014.0,0.81562514]
[1743980307776,0.24,78015.0,78014.0,0.81562514]
[1743980307978,0.24,78015.0,78014.0,1.00082514]
[1743980308176,0.24,78015.0,78014.0,1.01802842]
[1743980309479,0.24,78015.0,78014.0,1.21138168]
[1743980309881,0.23764771,78015.0,78014.0,1.21138168]
[1743980310080,0.23764771,78015.0,78014.0,1.21418168]
[1743980310376,0.23764771,78015.0,78014.0,1.21618168]
[1743980310770,0.23764771,78015.0,78014.0,1.21518168]
[1743980310970,0.23764771,78015.0,78014.0,1.21318168]
[1743980311172,0.23764771,78015.0,78014.0,1.21418168]
[1743980311879,0.3864,78028.0,78027.0,0.1282607]
[1743980312080,0.42716,78028.0,78027.0,0.14622165]
[1743980312271,0.42716,78028.0,78027.0,0.1289407]
[1743980312476,0.42716,78028.0,78027.0,0.16353178]
[1743980312675,0.42716,78028.0,78027.0,0.29171307]
[1743980314081,0.555419,78028.0,78027.0,0.16345237]
[1743980314388,0.42716,78028.0,78027.0,0.16345237]
[1743980314682,0.42716,78028.0,78027.0,0.29171307]
[1743980315383,0.04076,78028.0,78027.0,0.29171307]
[1743980315587,0.04,78028.0,78027.0,0.47231307]
[1743980316081,0.03038049,78028.0,78027.0,0.47231307]
[1743980318180,0.03038049,78028.0,78027.0,0.66211307]
[1743980319282,0.03038049,78028.0,78027.0,0.71732704]
[1743980319885,0.21118049,78028.0,78027.0,0.71732704]
[1743980320078,0.03038049,78028.0,78027.0,0.71732704]
[1743980321185,0.03038049,78028.0,78027.0,0.90990787]
[1743980321482,0.14751186,78032.0,78031.0,0.3413541]
[1743980321782,0.14751186,78032.0,78031.0,0.56304497]
[1743980321975,0.14751186,78032.0,78031.0,0.77282908]
[1743980322286,0.14751186,78032.0,78031.0,0.90098245]
[1743980322479,0.001,78046.0,78031.0,0.77272835]
[1743980322683,0.20709994,78041.0,78040.0,0.4890393]
[1743980322879,0.20785994,78041.0,78040.0,0.4976569]
[1743980323084,0.33609764,78041.0,78040.0,0.1368569]
[1743980323381,0.33609764,78041.0,78040.0,0.26500288]
[1743980323681,0.33609764,78041.0,78040.0,0.14688288]
[1743980323982,0.329685,78041.0,78040.0,0.16340616]
[1743980324186,0.515485,78041.0,78040.0,0.16340616]
[1743980324480,0.3347977,78041.0,78040.0,0.16340616]
[1743980325187,0.1282673,78023.0,78014.0,0.1282809]
[1743980325381,0.3582673,78023.0,78022.0,0.22913111]
[1743980325581,0.3590273,78023.0,78022.0,0.22913111]
[1743980325786,0.23076,78023.0,78022.0,0.22913111]
[1743980325979,0.3590273,78023.0,78022.0,0.3572697]
[1743980326178,0.7353273,78023.0,78022.0,0.3572697]
[1743980326585,1.0961273,78023.0,78022.0,0.3572697]
[1743980326981,0.7353273,78023.0,78022.0,0.22913111]
[1743980327183,0.7353273,78023.0,78022.0,0.35729926]
[1743980327488,0.60706,78023.0,78022.0,0.48556816]
[1743980327682,0.60706,78023.0,78022.0,0.35729926]
[1743980327988,0.7353273,78023.0,78022.0,0.12888815]
[1743980328186,0.7353273,78023.0,78022.0,0.12816815]
[1743980328392,0.1282788,78016.0,78015.0,0.0001923]
[1743980328592,0.7198388,78016.0,78015.0,0.0001923]
[1743980328991,0.1282903,78009.0,78008.0,0.22841111]
[1743980329297,0.7199703,78009.0,78008.0,0.22909111]
[1743980329490,0.1282985,78004.0,78003.0,0.30336691]
[1743980329688,0.12831,77997.0,77987.0,0.3608]
[1743980329987,0.1283166,77993.0,77992.0,0.0179194]
[1743980330189,0.1283215,77990.0,77989.0,0.0001923]
[1743980330489,0.3583215,77990.0,77989.0,0.12839167]
[1743980330691,0.3583215,77990.0,77989.0,0.0001923]
[1743980330886,0.3583215,77990.0,77989.0,0.12839167]
[1743980331186,0.1894,77996.0,77995.0,0.1283133]
[1743980331387,0.1965,78003.0,78002.0,0.1283018]
[1743980331692,0.0016323,78004.0,78003.0,0.1283001]
[1743980332187,0.3608,78023.0,78006.0,0.2131]
[1743980332390,0.36176001,78023.0,78022.0,0.1282689]
[1743980332587,0.00096001,78023.0,78022.0,0.1282689]
[1743980332987,0.00096001,78023.0,78022.0,0.5092689]
[1743980333181,0.00096001,78023.0,78022.0,0.63743705]
[1743980334084,0.22248767,78029.0,78028.0,0.128259]
[1743980334391,0.22248767,78029.0,78028.0,0.13810833]
[1743980334584,0.35547361,78043.0,78028.0,0.38817624]
[1743980334786,0.35547361,78043.0,78037.0,0.0641215]
[1743980334787,0.24564629,78043.0,78037.0,0.0641215]
[1743980334985,0.24564629,78043.0,78042.0,0.128236]
[1743980335191,0.24564629,78043.0,78041.0,0.2131]
[1743980335380,0.128236,78042.0,78041.0,0.1849]
[1743980335582,0.1282426,78038.0,78037.0,0.118]
[1743980335884,0.12920261,78038.0,78037.0,0.118]
[1743980336084,0.12920261,78038.0,78037.0,0.24614352]
[1743980336292,0.15096001,78038.0,78028.0,0.01752691]
[1743980336487,0.3608,78030.0,78024.0,0.06429156]
[1743980336687,0.1946,78029.0,78028.0,0.1282583]
[1743980336891,0.1946,78029.0,78027.0,0.1282603]
[1743980337090,0.3893,78029.0,78028.0,0.01832724]
[1743980337297,0.39026001,78029.0,78028.0,0.146488]
[1743980337483,0.51851741,78029.0,78028.0,0.16421603]
[1743980337683,0.1282623,78026.0,78025.0,1e-08]
[1743980337992,0.1283265,77987.0,77973.0,0.3608]
[1743980338185,0.49008651,77987.0,77974.0,0.1859]
[1743980338380,0.49008651,77987.0,77982.0,0.01786794]
[1743980338892,0.36191357,77987.0,77986.0,0.13008166]
[1743980339189,0.55381357,77987.0,77986.0,0.13008166]
[1743980339386,0.74161357,77987.0,77986.0,0.25840976]
[1743980339588,0.74361357,77987.0,77986.0,0.25840976]
[1743980339793,0.87394007,77987.0,77986.0,0.13008166]
[1743980340091,0.128338,77980.0,77967.0,0.0641795]
[1743980340286,0.49009801,77980.0,77967.0,0.1925382]
[1743980340485,0.49009801,77980.0,77973.0,0.0641741]
[1743980340486,0.1283479,77977.0,77973.0,0.0641741]
[1743980340690,0.3963,77976.0,77975.0,0.1925185]
[1743980340888,0.3963,77976.0,77969.0,0.1925287]
[1743980341092,0.3608,77970.0,77969.0,0.1925335]
[1743980341289,0.3608,77970.0,77961.0,0.1971]
[1743980341490,0.3608,77962.0,77961.0,0.1283693]
[1743980341889,0.1975,77963.0,77962.0,0.1283676]
[1743980342194,0.1975,77963.0,77961.0,0.12824623]
[1743980342489,0.1975,77963.0,77962.0,0.12826844]
[1743980342695,0.1975,77963.0,77962.0,0.31686844]
[1743980343196,0.1975,77963.0,77962.0,0.44523604]
[1743980343391,0.19946001,77963.0,77962.0,0.44523604]
[1743980343584,0.19946001,77963.0,77962.0,0.31686844]
[1743980343784,0.19946001,77963.0,77962.0,0.44523604]
[1743980343998,0.19946001,77963.0,77962.0,0.49676844]
[1743980344196,0.687666,77963.0,77962.0,0.31686844]
[1743980344501,0.68777808,77963.0,77962.0,0.12826844]
[1743980344693,0.68777808,77963.0,77958.0,0.0001923]
[1743980344694,0.1283726,77959.0,77958.0,0.0001923]
[1743980344998,0.49013261,77959.0,77958.0,0.0001923]
[1743980345999,0.36176001,77959.0,77958.0,0.13045909]
[1743980346196,0.00096001,77959.0,77958.0,0.13045909]
[1743980346395,0.00096001,77959.0,77958.0,0.25951329]
[1743980346597,0.00011208,77963.0,77962.0,0.1283676]
[1743980346797,0.00011208,77963.0,77962.0,0.4898476]
[1743980347297,0.00011208,77963.0,77962.0,0.61811439]
[1743980347689,0.0001923,77973.0,77972.0,0.1283512]
[1743980347895,0.0641611,77990.0,77983.0,0.1283331]
[1743980348092,0.3614077,77984.0,77983.0,0.1290131]
[1743980348293,0.3614077,77984.0,77983.0,0.25727989]
[1743980348694,0.0641566,77996.0,77989.0,0.1283227]
[1743980348895,0.19138112,77995.0,77990.0,0.31432]
[1743980349095,0.1283171,77993.0,77990.0,0.50752]
[1743980349296,0.19138112,77995.0,77993.0,0.1283158]
[1743980349504,0.31969442,77995.0,77994.0,0.3608]
[1743980349800,0.4249407,78015.0,77996.0,0.0641557]
[1743980350002,0.1282845,78013.0,78005.0,0.0641484]
[1743980350191,0.1799,78014.0,78009.0,0.1282891]
[1743980350398,0.1799,78014.0,78010.0,0.73909381]
[1743980350691,0.001,78022.0,78011.0,0.03474765]
[1743980350896,0.001,78022.0,78021.0,0.1282705]
[1743980351096,0.3608,78039.0,78023.0,0.0641333]
[1743980351097,0.3744,78038.0,78023.0,0.0641333]
[1743980351291,0.3744,78038.0,78028.0,0.128259]
[1743980351292,0.0001923,78029.0,78028.0,0.128259]
[1743980351603,0.0001923,78029.0,78028.0,0.01749381]
[1743980351904,0.3609923,78029.0,78028.0,0.14567182]
[1743980352099,0.4892497,78029.0,78028.0,0.16292566]
[1743980352309,0.3609923,78029.0,78028.0,0.28080566]
[1743980352496,0.3689923,78029.0,78028.0,0.28080566]
[1743980353097,0.3689923,78029.0,78028.0,0.40906466]
[1743980353300,0.0081923,78029.0,78028.0,0.40906466]
[1743980353900,0.0081923,78029.0,78028.0,0.40930265]
[1743980354103,0.0081923,78029.0,78028.0,0.42688511]
[1743980354302,0.0081923,78029.0,78028.0,0.42832511]
[1743980354608,0.0081923,78029.0,78028.0,0.42828511]
[1743980354999,0.0081923,78029.0,78028.0,0.30002611]
[1743980355199,0.0081923,78029.0,78028.0,0.42828511]
[1743980357003,0.0081923,78029.0,78028.0,0.31044511]
[1743980358304,0.0081923,78029.0,78028.0,0.18218611]
[1743980358705,0.0081923,78029.0,78028.0,0.31044511]
[1743980360510,0.0081923,78029.0,78028.0,0.29319127]
[1743980360810,0.1364497,78029.0,78028.0,0.16493227]
[1743980361109,0.1282689,78022.0,78021.0,0.0001923]
[1743980361301,0.0641392,78017.0,78005.0,0.11776]
[1743980361609,0.3608,78008.0,78007.0,0.12838531]
[1743980361802,0.3608,78008.0,78007.0,0.12938531]
[1743980362206,0.4890919,78008.0,78007.0,0.12938531]
[1743980362407,0.4890919,78008.0,78007.0,0.25757811]
[1743980362610,0.4890919,78008.0,78007.0,0.47074999]
[1743980362908,0.3608,78008.0,78007.0,0.47074999]
[1743980363104,0.3608,78008.0,78007.0,0.46874999]
[1743980363304,0.3608,78008.0,78007.0,0.47074999]
[1743980364109,0.3608,78032.0,78011.0,0.0641434]
[1743980364313,0.32495813,78023.0,78022.0,0.1282689]
[1743980364508,0.32495813,78023.0,78013.0,0.0641417]
[1743980364710,0.1282744,78019.0,78014.0,0.1926]
[1743980364908,0.1282744,78019.0,78018.0,0.1282755]
[1743980365308,0.1282718,78021.0,78020.0,0.1282714]
[1743980365813,0.3128718,78021.0,78020.0,0.1282714]
[1743980366015,0.32495813,78023.0,78022.0,0.1282689]
[1743980366212,0.1282711,78021.0,78019.0,0.1926]
[1743980366411,0.32495813,78023.0,78022.0,0.1282689]
[1743980366616,0.45322543,78023.0,78022.0,0.1282689]
[1743980366815,0.32495813,78023.0,78022.0,0.25644034]
[1743980367015,0.0641197,78040.0,78026.0,0.0641304]
[1743980367211,0.064123,78036.0,78030.0,0.1282553]
[1743980367410,0.1282554,78031.0,78030.0,0.36487915]
[1743980367615,0.0641262,78033.0,78032.0,0.1282525]
[1743980368313,0.1904,78035.0,78032.0,0.25640423]
[1743980368616,0.1904,78035.0,78034.0,0.1282492]
[1743980369320,0.1904,78035.0,78034.0,0.25639764]
[1743980369518,0.3226475,78035.0,78034.0,0.12814844]
[1743980369921,0.3226475,78035.0,78031.0,0.1282533]
[1743980369922,0.1282526,78032.0,78031.0,0.1282533]
[1743980370124,0.19552001,78035.0,78034.0,0.1282492]
[1743980370326,0.19620001,78035.0,78034.0,0.1292492]
[1743980370621,0.3273275,78035.0,78034.0,0.001]
[1743980370827,0.3273275,78035.0,78034.0,0.12914844]
[1743980371124,0.6881275,78035.0,78034.0,0.12914844]
[1743980371420,0.1282919,78008.0,77994.0,0.3608]
[1743980371626,0.4897719,78008.0,78007.0,9.171e-05]
[1743980372012,0.00068,78008.0,78007.0,0.14300755]
[1743980372217,0.4890919,78008.0,78007.0,0.12896015]
[1743980372419,0.4897719,78008.0,78007.0,0.12824015]
[1743980372617,0.36148,78008.0,78007.0,0.25653375]
[1743980372814,0.00068,78008.0,78007.0,0.62201375]
[1743980373021,0.00068,78008.0,78007.0,0.63660298]
[1743980373224,0.1282854,78012.0,78011.0,0.1924264]
[1743980373520,0.1817,78014.0,78013.0,0.1282837]
[1743980373727,0.18238,78014.0,78013.0,0.1289637]
[1743980373929,0.4249333,78024.0,78013.0,0.1289637]
[1743980373930,0.5531796,78033.0,78030.0,0.0641271]
[1743980374124,0.1282577,78031.0,78030.0,0.1282542]
[1743980374318,0.0641287,78029.0,78022.0,0.0641344]
[1743980374521,0.1282666,78024.0,78022.0,0.00088]
[1743980374826,0.1811,78023.0,78022.0,0.1291479]
[1743980375424,0.1811,78023.0,78022.0,0.25731523]
[1743980376122,0.1886,78028.0,78022.0,0.12904733]
[1743980376326,0.1811,78027.0,78026.0,0.4890623]
[1743980376626,0.0001923,78030.0,78029.0,0.1282574]
[1743980377227,0.0001923,78030.0,78027.0,0.192389]
[1743980377423,0.1282574,78029.0,78028.0,0.1924]
[1743980377624,0.1282574,78029.0,78028.0,0.32055665]
[1743980378225,0.0001923,78030.0,78028.0,0.32055665]
[1743980378529,0.0641203,78040.0,78029.0,0.3608]
[1743980378738,0.1282432,78038.0,78030.0,0.23662385]
[1743980378919,0.185,78044.0,78030.0,0.42796271]
[1743980379123,0.1282484,78035.0,78030.0,0.42796271]
[1743980379317,0.185,78044.0,78030.0,0.42796271]
[1743980379318,0.0641205,78039.0,78031.0,0.32054926]
[1743980379523,0.1282395,78040.0,78036.0,0.1282446]
[1743980379734,0.1282395,78040.0,78037.0,0.4405636]
[1743980379928,0.004,78038.0,78037.0,0.4405642]
[1743980380229,0.004,78038.0,78037.0,0.674]
[1743980380421,0.008,78039.0,78038.0,0.0641213]
[1743980380619,0.008,78039.0,78038.0,0.3240026]
[1743980381131,0.004,78039.0,78038.0,0.45214447]
[1743980381433,0.001,78046.0,78040.0,0.0641193]
[1743980381732,0.1849,78045.0,78044.0,0.1282327]
[1743980381928,0.00088,78045.0,78044.0,0.1282327]
[1743980382228,0.00088,78045.0,78044.0,0.50324201]
[1743980382433,0.001,78046.0,78045.0,0.1282311]
[1743980382638,0.22335022,78054.0,78050.0,0.0641111]
[1743980382926,0.22427022,78054.0,78053.0,0.489018]
[1743980383233,0.22427022,78054.0,78053.0,0.246578]
[1743980383528,0.1801,78067.0,78066.0,0.1281966]
[1743980383732,0.18098,78067.0,78066.0,0.1291966]
[1743980383930,0.00088,78067.0,78066.0,0.1291966]
[1743980384234,0.001,78070.0,78069.0,0.1281917]
[1743980384527,0.00188,78070.0,78069.0,0.11836]
[1743980384732,0.13007,78070.0,78069.0,0.11836]
[1743980385124,0.13007,78070.0,78069.0,0.12901591]
[1743980385323,0.1282015,78063.0,78054.0,0.31674]
[1743980385517,0.4890015,78063.0,78054.0,0.31674]
[1743980386023,0.4890015,78063.0,78062.0,0.12828317]
[1743980386224,0.6707015,78063.0,78062.0,0.12828317]
[1743980386421,0.195,78064.0,78062.0,0.12828317]
[1743980386627,0.195,78064.0,78063.0,0.1282015]
[1743980386929,0.001,78070.0,78069.0,0.1281917]
[1743980387832,0.001,78070.0,78069.0,0.3212917]
[1743980388036,0.001,78070.0,78069.0,0.44939254]
[1743980388332,0.001,78070.0,78069.0,0.12810084]
[1743980388530,0.3618,78070.0,78069.0,0.25629254]
[1743980388733,0.001,78070.0,78069.0,0.1281917]
[1743980388928,0.001,78070.0,78069.0,0.25628269]
[1743980389127,0.001,78070.0,78069.0,0.43678269]
[1743980389627,0.005,78070.0,78069.0,0.43678269]
[1743980389934,0.009,78070.0,78069.0,0.43678269]
[1743980390137,0.009,78070.0,78069.0,0.43746269]
[1743980390530,0.13719,78070.0,78069.0,0.43746269]
[1743980390727,0.00968,78070.0,78069.0,0.43746269]
[1743980391235,0.13787,78070.0,78069.0,0.43746269]
[1743980391433,0.00968,78070.0,78069.0,0.43746269]
[1743980391733,0.00972,78070.0,78069.0,0.65056269]
[1743980391928,0.00968,78070.0,78069.0,0.43746269]
[1743980392127,0.009,78070.0,78069.0,0.43746269]
[1743980393640,0.13719,78070.0,78069.0,0.43746269]
[1743980393833,0.009,78070.0,78069.0,0.43746269]
[1743980395337,0.009,78070.0,78069.0,0.79826269]
[1743980395534,0.009,78070.0,78069.0,0.91554269]
[1743980396137,0.009,78070.0,78069.0,0.79826269]
[1743980396338,0.009,78070.0,78069.0,0.91550269]
[1743980398045,0.1821,78077.0,78076.0,0.1281802]
[1743980398241,0.1821,78077.0,78076.0,0.36148]
[1743980398242,0.3109585,78077.0,78076.0,0.36148]
[1743980398537,0.1282015,78063.0,78059.0,0.3608]
[1743980398744,0.1291215,78063.0,78062.0,0.00095218]
[1743980398940,0.38102,78063.0,78062.0,0.12915538]
[1743980399137,0.38102,78063.0,78062.0,0.25724637]
[1743980399441,0.38102,78063.0,78062.0,0.44254637]
[1743980400029,0.19162,78063.0,78062.0,0.44254637]
[1743980400333,0.1947,78063.0,78062.0,0.44254637]
[1743980400530,0.1957,78063.0,78062.0,0.44254637]
[1743980400738,0.005,78063.0,78062.0,0.44254637]
[1743980401249,0.005,78063.0,78062.0,0.49634317]
[1743980401449,0.005,78063.0,78062.0,0.31434317]
[1743980401845,0.1332015,78063.0,78062.0,0.12904317]
[1743980402149,0.1332015,78063.0,78059.0,0.3608]
[1743980402150,0.1282065,78060.0,78059.0,0.3608]
[1743980402340,0.1282262,78048.0,78047.0,0.3608]
[1743980402539,0.064117,78044.0,78037.0,0.3608]
[1743980402743,0.128259,78028.0,78027.0,0.00102528]
[1743980402939,0.1282755,78018.0,78017.0,0.3608]
[1743980403138,0.1282804,78015.0,78014.0,0.38044995]
[1743980403541,0.1282804,78015.0,78007.0,0.00028389]
[1743980403542,0.1282919,78008.0,78007.0,0.00028389]
[1743980403735,0.1294519,78008.0,78007.0,0.00028389]
[1743980403939,0.1282985,78004.0,77998.0,0.45654328]
[1743980404143,0.1283067,77999.0,77998.0,0.45654328]
[1743980404348,0.12942671,77999.0,77998.0,0.45654328]
[1743980404739,0.1283232,77989.0,77988.0,0.01417368]
[1743980404940,0.1283331,77983.0,77982.0,0.89146032]
[1743980405245,9.171e-05,77983.0,77975.0,0.36099231]
[1743980405440,0.1283446,77976.0,77975.0,0.48933851]
[1743980405646,0.1295046,77976.0,77975.0,0.36099231]
[1743980406044,0.1295046,77976.0,77975.0,0.12841634]
[1743980406646,0.00116,77976.0,77975.0,0.25676254]
[1743980406952,0.1295046,77976.0,77975.0,0.12841634]
[1743980407150,0.1283446,77976.0,77975.0,0.13041634]
[1743980407351,0.504536,77982.0,77975.0,0.13241634]
[1743980407548,9.171e-05,77983.0,77975.0,0.13241634]
[1743980407549,0.3799,77980.0,77979.0,0.1925088]
[1743980407752,0.1283396,77979.0,77978.0,0.3608]
[1743980408049,9.171e-05,77983.0,77982.0,0.1283347]
[1743980408254,0.1963,77998.0,77989.0,0.1283232]
[1743980408456,0.1283004,78003.0,77995.0,0.1283128]
[1743980408645,0.1283056,78000.0,77998.0,0.3608]
[1743980408842,0.27792807,77999.0,77998.0,0.3608]
[1743980409047,0.1283215,77990.0,77989.0,0.48904047]
[1743980409256,0.34592137,77999.0,77989.0,0.3608]
[1743980409446,0.34592137,77999.0,77996.0,0.3608]
[1743980409648,0.41107527,77999.0,77996.0,0.3608]
[1743980409848,0.15062137,77999.0,77998.0,0.1283084]
[1743980410156,0.27980807,77999.0,77998.0,0.00076]
[1743980410354,0.28060807,77999.0,77998.0,0.00076]
[1743980410652,0.0641553,77997.0,77991.0,0.3608]
[1743980410848,0.0641558,77996.0,77991.0,0.36148]
[1743980411049,0.1283177,77993.0,77992.0,0.12820759]
[1743980411248,0.12943771,77993.0,77992.0,0.12896759]
[1743980411954,0.18582001,77993.0,77992.0,0.25728579]
[1743980412150,0.18582001,77993.0,77992.0,0.12896759]
[1743980412356,0.69662001,77993.0,77966.0,0.3608]
[1743980412548,0.1283693,77961.0,77960.0,0.1805]
[1743980412748,0.12960931,77961.0,77960.0,0.00124]
[1743980413252,0.13947042,77961.0,77960.0,0.12945745]
[1743980413464,0.1283775,77956.0,77955.0,0.36182623]
[1743980413764,0.13001751,77956.0,77955.0,0.36250623]
[1743980414153,0.0641944,77950.0,77942.0,0.3608]
[1743980414457,0.1284055,77939.0,77938.0,0.37515509]
[1743980414647,0.1302455,77939.0,77938.0,0.37515509]
[1743980415357,0.38587478,77939.0,77938.0,0.61751339]
[1743980415555,0.19257478,77939.0,77938.0,0.61751339]
[1743980415751,0.00013478,77939.0,77938.0,0.6317026]
[1743980415946,0.00013478,77939.0,77938.0,0.9981026]
[1743980416268,0.064189,77956.0,77938.0,0.9981026]
[1743980416269,0.064176,77972.0,77945.0,0.1283956]
[1743980416458,0.18474,77958.0,77954.0,0.0641896]
[1743980416760,0.1925662,77956.0,77955.0,0.002]
[1743980416949,0.1944062,77956.0,77955.0,0.002]
[1743980417150,0.1283973,77944.0,77943.0,0.3608]
[1743980417347,0.1302373,77944.0,77943.0,0.3608]
[1743980417656,0.00184,77944.0,77943.0,0.3608]
[1743980417863,0.00184,77944.0,77943.0,0.48907831]
[1743980417864,0.13027731,77944.0,77943.0,0.48907831]
[1743980418165,0.31447731,77944.0,77943.0,0.3608]
[1743980418463,0.1284055,77939.0,77938.0,0.002]
[1743980418664,0.1284088,77937.0,77936.0,0.00019243]
[1743980418854,0.128417,77932.0,77924.0,0.3608]
[1743980419055,0.130257,77932.0,77924.0,0.3608]
[1743980419252,0.1284286,77925.0,77924.0,0.3608]
[1743980419453,0.1284533,77910.0,77909.0,0.0642269]
[1743980419656,0.1284533,77910.0,77909.0,0.3608]
[1743980419859,0.3734,77924.0,77915.0,0.064222]
[1743980420057,0.17504001,77924.0,77923.0,0.3608]
[1743980420258,1e-08,77924.0,77923.0,0.4892319]
[1743980420458,0.00019243,77927.0,77926.0,0.1284269]
[1743980421049,0.00019243,77927.0,77926.0,0.25676447]
[1743980421256,0.0641984,77945.0,77926.0,0.12833757]
[1743980421455,0.1851,77948.0,77941.0,0.3608]
[1743980421657,0.1851,77948.0,77947.0,0.4891923]
[1743980421861,0.00943796,77962.0,77947.0,0.3608]
[1743980422163,0.1851,77951.0,77950.0,0.1283874]
[1743980422356,0.0641767,77971.0,77948.0,0.0641946]
[1743980422555,0.1851,77973.0,77960.0,0.0641851]
[1743980422753,0.0641759,77972.0,77971.0,0.3608]
[1743980422958,0.1851,77973.0,77967.0,0.3608]
[1743980423161,0.1851,77973.0,77962.0,0.3608]
[1743980423357,0.1823,77972.0,77962.0,0.3608]
[1743980423557,0.001,77974.0,77973.0,0.1283495]
[1743980423768,0.001,77974.0,77973.0,0.4891495]
[1743980423960,0.1823,77986.0,77973.0,0.3608]
[1743980424164,0.48456916,78003.0,77987.0,0.1283265]
[1743980424362,0.46626683,78003.0,78002.0,0.1283018]
[1743980424668,0.4304549,78003.0,78002.0,0.85279007]
[1743980424868,0.1823,78015.0,78008.0,0.1282919]
[1743980425056,0.001,78022.0,78021.0,0.1282705]
[1743980425262,0.1863,78034.0,78021.0,0.83936]
[1743980425568,0.1863,78034.0,78021.0,0.12887115]
[1743980425569,0.1282689,78022.0,78021.0,0.12887115]
[1743980425754,0.1292289,78022.0,78021.0,0.12887115]
[1743980425959,0.1292289,78022.0,78021.0,0.00068]
[1743980426160,0.00096,78022.0,78021.0,0.00068]
[1743980426455,0.1292289,78022.0,78021.0,0.12884979]
[1743980426661,0.1292289,78022.0,78021.0,0.30884979]
[1743980426662,0.00088,78022.0,78021.0,0.30884979]
[1743980426963,0.1863,78037.0,78021.0,0.43711969]
[1743980427155,0.128268,78023.0,78022.0,0.6061089]
[1743980427362,0.0641239,78035.0,78022.0,0.65852]
[1743980427661,0.1863,78034.0,78032.0,0.3608]
[1743980427969,0.0641045,78059.0,78044.0,0.1282315]
[1743980428171,0.3186319,78045.0,78044.0,0.00072]
[1743980428362,0.3193119,78045.0,78044.0,0.7216]
[1743980428671,0.19108,78045.0,78044.0,0.48967091]
[1743980428962,0.064112,78050.0,78044.0,0.48967091]
[1743980428963,0.0641043,78059.0,78045.0,0.0641154]
[1743980429167,0.1282295,78046.0,78045.0,0.001]
[1743980429371,0.1332311,78045.0,78044.0,0.001]
[1743980429566,0.3243111,78045.0,78044.0,0.001]
[1743980429756,0.00568,78045.0,78044.0,0.13013202]
[1743980429955,0.3608,78054.0,78047.0,0.0641131]
[1743980430156,0.1904,78057.0,78056.0,0.128213]
[1743980430366,0.1904,78057.0,78052.0,0.3608]
[1743980430572,0.128218,78053.0,78052.0,0.3608]
[1743980430776,0.128218,78053.0,78052.0,0.5472]
[1743980430964,0.128218,78053.0,78052.0,0.3608]
[1743980431464,0.1282295,78046.0,78045.0,0.001]
[1743980431662,0.128236,78042.0,78041.0,0.3608]
[1743980431864,0.001,78045.0,78044.0,0.1282327]
[1743980432068,0.1292311,78045.0,78044.0,0.1282327]
[1743980432268,0.001,78045.0,78044.0,0.1282327]
[1743980432473,0.1804,78050.0,78049.0,0.1282245]
[1743980432767,0.0681057,78057.0,78049.0,0.3608]
[1743980432973,0.1282229,78050.0,78049.0,0.3608]
[1743980433169,0.1282426,78038.0,78029.0,0.3754771]
[1743980433475,0.1282426,78038.0,78029.0,0.3608]
[1743980433775,0.1282426,78038.0,78030.0,0.1969]
[1743980433970,0.002,78045.0,78037.0,0.12831037]
[1743980434171,0.0641184,78042.0,78037.0,0.12831037]
[1743980434369,0.1332426,78038.0,78037.0,0.12931037]
[1743980435072,0.1341626,78038.0,78037.0,0.13023037]
[1743980435467,0.00592,78038.0,78037.0,0.25847457]
[1743980435666,0.3608,78048.0,78037.0,0.25847457]
[1743980435667,0.12822,78052.0,78037.0,0.28023037]
[1743980435868,0.128241,78039.0,78038.0,0.11692]
[1743980436067,0.1282383,78041.0,78038.0,0.11784]
[1743980436277,0.0641148,78046.0,78038.0,0.11784]
[1743980436467,0.128241,78039.0,78038.0,0.00092]
[1743980436669,0.00092,78039.0,78038.0,0.1291626]
[1743980436870,0.3608,78068.0,78039.0,0.3213337]
[1743980437069,0.1282377,78041.0,78040.0,0.0170697]
[1743980437276,0.1282377,78041.0,78040.0,0.1349497]
[1743980437277,0.1291577,78041.0,78040.0,0.1349497]
[1743980437578,0.1291577,78041.0,78040.0,0.14618695]
[1743980437779,0.1291577,78041.0,78040.0,0.001]
[1743980437969,0.1282426,78038.0,78037.0,0.0001923]
[1743980438164,0.1290426,78038.0,78037.0,0.0001923]
[1743980438577,0.0008,78038.0,78037.0,0.01726019]
[1743980438980,0.0008,78038.0,78037.0,0.61737509]
[1743980439177,0.006,78041.0,78040.0,0.1282393]
[1743980439366,0.006,78041.0,78040.0,0.00072]
[1743980439573,0.006,78041.0,78040.0,0.1289593]
[1743980439770,0.003,78041.0,78040.0,0.25710282]
[1743980439970,0.1867,78053.0,78045.0,0.0641152]
[1743980440177,0.00076,78053.0,78052.0,0.1282196]
[1743980440373,0.0641023,78062.0,78045.0,0.00072]
[1743980440374,0.0641032,78060.0,78055.0,0.1282138]
[1743980440576,0.064091,78075.0,78056.0,0.3608]
[1743980440871,0.12919,78070.0,78069.0,0.3608]
[1743980441075,0.1281991,78065.0,78064.0,0.3608]
[1743980441271,0.064092,78074.0,78064.0,0.1290399]
[1743980441576,0.00116,78074.0,78069.0,0.0640953]
[1743980441781,0.0652517,78074.0,78070.0,0.1281896]
[1743980441978,0.00116,78074.0,78072.0,0.1281858]
[1743980442171,0.00116,78074.0,78073.0,0.1281851]
[1743980442376,0.00116,78074.0,78073.0,0.27140552]
[1743980443081,0.1333435,78074.0,78073.0,0.14322042]
[1743980444181,0.1333435,78074.0,78073.0,0.12920689]
[1743980444583,0.0640991,78066.0,78059.0,0.01370996]
[1743980444780,0.1282065,78060.0,78059.0,0.00112]
[1743980445079,0.1281872,78072.0,78070.0,0.1281891]
[1743980445281,0.1281884,78071.0,78070.0,0.00144]
[1743980445483,0.1281922,78069.0,78067.0,0.4889937]
[1743980445669,0.1281933,78068.0,78067.0,0.36224]
[1743980445874,0.1281917,78069.0,78067.0,0.490435]
[1743980446076,0.1281917,78069.0,78068.0,0.1281933]
[1743980446385,0.1281744,78080.0,78076.0,0.1281802]
[1743980446575,0.1281724,78081.0,78076.0,0.1281802]
[1743980446778,0.1281747,78080.0,78076.0,0.1296202]
[1743980446978,0.0640852,78082.0,78076.0,0.1296202]
[1743980447177,0.0640877,78079.0,78076.0,0.1296202]
[1743980447378,0.0640877,78079.0,78076.0,0.12953345]
[1743980447379,0.4889785,78077.0,78076.0,0.12953345]
[1743980447674,0.4899785,78077.0,78076.0,0.12953345]
[1743980448378,0.4899785,78077.0,78076.0,0.12809345]
[1743980448785,0.0640944,78071.0,78059.0,0.01415357]